bitfinex/quotes_SOLUSD_20240818
["timestamp","ask_amount","ask_price","bid_price","bid_amount"]
[1723996268308,46.70896695,146.31,146.26,15.6077]
[1723996269285,45.0,146.31,146.26,15.6077]
[1723996271113,1.70913211,146.3,146.26,15.6077]
[1723996271314,8.83,146.28,146.22,15.6077]
[1723996271524,8.83,146.26,146.22,15.6077]
[1723996271696,46.70977039,146.25,146.22,15.6077]
[1723996271893,45.0,146.25,146.22,15.6077]
[1723996273218,30.0,146.23,146.22,15.6077]
[1723996273519,30.0,146.23,146.18,15.6077]
[1723996273712,30.0,146.23,146.19,20.0]
[1723996276297,30.0,146.24,146.19,28.83]
[1723996277819,30.0,146.24,146.19,20.0]
[1723996280822,46.70985923,146.23,146.18,15.6077]
[1723996281292,46.70985923,146.23,146.09,35.32]
[1723996281293,38.83,146.22,146.14,16.13]
[1723996281499,46.71036256,146.21,146.14,16.13]
[1723996281717,1.71036092,146.2,146.14,16.13]
[1723996283399,45.0,146.21,146.14,16.13]
[1723996283722,30.0,146.19,146.14,16.13]
[1723996283904,46.71069941,146.18,146.1,24.96]
[1723996284110,1.71077921,146.17,146.1,24.96]
[1723996284709,30.0,146.16,146.1,24.96]
[1723996285028,30.0,146.16,146.12,8.83]
[1723996286032,30.0,146.16,146.13,1.06935646]
[1723996286196,30.0,146.16,146.12,8.83]
[1723996287226,45.0,146.18,146.12,8.83]
[1723996287428,45.0,146.19,146.12,8.83]
[1723996287729,46.71058697,146.19,146.12,8.83]
[1723996287918,45.0,146.19,146.12,8.83]
[1723996288828,46.71058684,146.19,146.12,8.83]
[1723996290234,45.0,146.19,146.12,8.83]
[1723996291015,45.0,146.19,146.1,24.96]
[1723996291328,31.10079214,146.18,146.1,16.13]
[1723996291536,46.71103877,146.17,146.1,16.13]
[1723996291829,8.83,146.16,146.1,16.13]
[1723996292006,8.83,146.16,146.07,16.13]
[1723996292007,46.71114955,146.15,146.07,16.13]
[1723996292211,10.54129912,146.14,146.07,16.13]
[1723996292427,45.0,146.13,146.07,16.13]
[1723996292628,1.71126679,146.12,146.07,16.13]
[1723996293703,45.0,146.13,146.07,16.13]
[1723996293704,1.71127978,146.11,146.07,16.13]
[1723996294927,1.71129132,146.12,146.07,16.13]
[1723996295125,45.0,146.13,146.07,16.13]
[1723996297230,27.401,146.18,146.07,16.13]
[1723996297539,8.83,146.17,146.08,8.83]
[1723996297735,10.54103442,146.17,146.08,8.83]
[1723996298227,1.71103829,146.16,146.08,8.83]
[1723996298433,36.2314,146.17,146.08,8.83]
[1723996298610,45.0,146.16,146.08,8.83]
[1723996300115,8.83,146.15,146.07,16.13]
[1723996300419,45.0,146.14,146.07,16.13]
[1723996300620,10.54135733,146.13,146.07,16.13]
[1723996300834,45.0,146.12,146.05,6.3974]
[1723996301026,1.71148062,146.11,146.06,20.0]
[1723996301336,45.0,146.12,146.03,25.1973]
[1723996301533,45.0,146.12,146.04,20.0]
[1723996301933,45.0,146.12,146.05,8.83]
[1723996303453,45.0,146.12,146.05,9.90112262]
[1723996303818,45.0,146.12,146.06,8.83]
[1723996304350,6.2039,146.15,146.06,8.83]
[1723996304520,15.2777,146.17,146.1,8.83]
[1723996305847,45.0,146.16,146.1,8.83]
[1723996306037,8.83,146.15,146.06,8.83]
[1723996306349,46.71133154,146.14,146.06,8.83]
[1723996306544,45.0,146.14,146.06,8.83]
[1723996306961,45.0,146.14,146.04,19.40112262]
[1723996307248,45.0,146.14,146.05,8.83]
[1723996307447,45.0,146.14,146.06,20.0]
[1723996309830,46.71130578,146.14,146.06,20.0]
[1723996310644,45.0,146.14,146.06,20.0]
[1723996312559,45.0,146.14,146.09,8.83]
[1723996315155,30.949,146.17,146.09,8.83]
[1723996315354,45.0,146.16,146.09,8.83]
[1723996317058,46.71096692,146.16,146.07,8.83]
[1723996317758,45.0,146.16,146.07,8.83]
[1723996318560,45.0,146.16,146.09,8.83]
[1723996320132,15.2777,146.17,146.11,8.83]
[1723996320335,10.54073807,146.16,146.09,15.0152]
[1723996320555,10.54073807,146.16,146.08,8.83]
[1723996320734,8.83,146.16,146.08,8.83]
[1723996320937,10.54096805,146.16,146.08,8.83]
[1723996321460,45.0,146.15,146.08,8.83]
[1723996323261,45.0,146.15,146.06,8.83]
[1723996323559,45.0,146.15,146.07,20.0]
[1723996324469,1.71108302,146.14,146.07,20.0]
[1723996324761,1.71108302,146.14,146.05,15.0152]
[1723996324762,16.94396615,146.14,146.06,20.0]
[1723996324961,45.0,146.13,146.06,20.0]
[1723996325466,1.71128526,146.12,146.06,20.0]
[1723996325851,45.0,146.13,146.06,20.0]
[1723996326068,45.0,146.13,146.07,8.83]
[1723996327453,45.0,146.13,146.06,20.0]
[1723996328462,1.71128402,146.12,146.06,20.0]
[1723996329157,45.0,146.13,146.06,20.0]
[1723996329670,1.71127908,146.12,146.06,20.0]
[1723996329852,45.0,146.13,146.06,20.0]
[1723996330672,1.71138359,146.12,146.06,20.0]
[1723996332750,45.0,146.13,146.06,20.0]
[1723996333973,1.71140263,146.12,146.06,20.0]
[1723996334167,16.5636,146.12,146.06,20.0]
[1723996334377,45.0,146.11,146.05,8.83]
[1723996334552,45.0,146.11,146.06,20.0]
[1723996335067,45.0,146.11,146.02,15.0152]
[1723996335471,45.0,146.11,146.02,23.8452]
[1723996336554,45.0,146.11,146.03,20.0]
[1723996337758,45.0,146.11,146.04,8.83]
[1723996337967,16.5636,146.12,146.06,8.83]
[1723996339861,45.0,146.11,146.04,8.83]
[1723996340077,45.0,146.11,146.05,20.0]
[1723996343294,16.5636,146.12,146.06,8.83]
[1723996343661,6.4027,146.14,146.08,8.83]
[1723996343862,6.4027,146.14,146.05,20.0]
[1723996343863,6.4027,146.14,146.09,8.83]
[1723996345188,7.16066926,146.18,146.11,8.83]
[1723996345490,21.5081,146.19,146.11,8.83]
[1723996346469,21.5081,146.19,146.13,8.83]
[1723996346659,15.0657,146.19,146.15,8.83]
[1723996346861,6.4424,146.22,146.15,8.83]
[1723996347271,15.0657,146.23,146.19,8.83]
[1723996347471,21.5081,146.26,146.19,8.83]
[1723996348161,30.3381,146.26,146.17,8.83]
[1723996348361,8.83,146.24,146.15,8.83]
[1723996348567,8.83,146.24,146.16,20.0]
[1723996348884,30.3381,146.26,146.17,8.83]
[1723996349577,45.0,146.25,146.17,8.83]
[1723996350565,8.83,146.24,146.16,20.0]
[1723996350892,45.0,146.23,146.16,20.0]
[1723996359987,1.71009517,146.22,146.16,20.0]
[1723996360289,45.0,146.23,146.16,20.0]
[1723996361797,45.0,146.23,146.17,8.83]
[1723996373008,45.0,146.23,146.15,8.83]
[1723996373308,45.0,146.23,146.16,20.0]
[1723996373489,46.71005138,146.23,146.16,20.0]
[1723996373801,46.71005034,146.23,146.16,20.0]
[1723996375181,45.0,146.23,146.16,20.0]
[1723996375917,46.7100515,146.23,146.16,20.0]
[1723996376090,45.0,146.23,146.16,20.0]
[1723996378524,1.7101559,146.22,146.16,20.0]
[1723996379795,45.0,146.23,146.16,20.0]
[1723996380408,45.0,146.23,146.15,28.83]
[1723996384107,16.3481,146.22,146.15,28.83]
[1723996384304,51.5813,146.21,146.11,20.0]
[1723996384517,16.3481,146.17,146.06,22.4695]
[1723996384699,16.3481,146.17,146.08,8.83]
[1723996384700,53.83,146.16,146.08,8.83]
[1723996385026,6.5813,146.15,146.08,8.83]
[1723996385222,6.5813,146.15,146.06,31.2995]
[1723996385223,45.0,146.14,146.06,31.2995]
[1723996385516,45.0,146.14,146.06,25.2438]
[1723996386019,30.0,146.12,146.02,6.0557]
[1723996386223,30.0,146.12,146.04,8.83]
[1723996387109,30.0,146.12,146.06,8.83]
[1723996387312,30.0,146.12,146.08,8.83]
[1723996388921,30.0,146.12,146.1,8.83]
[1723996389131,6.5813,146.15,146.1,8.83]
[1723996393325,6.5813,146.15,146.08,8.83]
[1723996393517,16.3481,146.17,146.1,8.83]
[1723996393821,16.3481,146.17,146.12,8.83]
[1723996394025,16.3481,146.17,146.1,8.83]
[1723996395713,45.0,146.16,146.1,8.83]
[1723996396624,16.3481,146.17,146.13,8.83]
[1723996396829,16.284,146.21,146.15,8.83]
[1723996398115,45.0,146.2,146.15,8.83]
[1723996398529,45.0,146.2,146.13,8.83]
[1723996400213,16.284,146.21,146.17,8.83]
[1723996404742,16.284,146.21,146.15,8.83]
[1723996405441,45.0,146.2,146.13,8.83]
[1723996405740,45.0,146.2,146.14,20.0]
[1723996405922,45.0,146.2,146.08,6.40108242]
[1723996406120,45.0,146.2,146.12,8.83]
[1723996407241,45.0,146.2,146.13,20.0]
[1723996407844,60.6701,146.2,146.13,20.0]
[1723996408142,53.83,146.2,146.11,8.83]
[1723996408316,53.83,146.2,146.12,20.0]
[1723996409360,45.0,146.2,146.13,8.83]
[1723996413660,46.71054484,146.2,146.13,8.83]
[1723996414167,55.54054484,146.2,146.11,8.83]
[1723996414337,62.38044484,146.2,146.11,8.83]
[1723996416243,6.4247,146.19,146.11,8.83]
[1723996416446,45.0,146.18,146.11,8.83]
[1723996418762,6.4247,146.19,146.13,8.83]
[1723996426254,16.284,146.21,146.13,8.83]
[1723996426559,45.0,146.2,146.15,8.83]
[1723996427272,6.4247,146.22,146.17,8.83]
[1723996427450,6.4247,146.22,146.13,15.2915]
[1723996427451,15.5592,146.25,146.19,8.83]
[1723996428750,45.0,146.24,146.19,8.83]
[1723996434488,6.4247,146.26,146.19,8.83]
[1723996434665,45.0,146.25,146.19,8.83]
[1723996437794,31.225,146.29,146.21,8.83]
[1723996438103,45.0,146.28,146.21,8.83]
[1723996440469,51.8366,146.28,146.19,15.789]
[1723996440668,45.0,146.28,146.19,24.619]
[1723996442776,1.70966221,146.27,146.19,24.619]
[1723996443090,45.0,146.28,146.19,24.619]
[1723996443301,10.53976693,146.27,146.19,15.789]
[1723996443502,45.0,146.26,146.19,15.789]
[1723996443798,1.70979095,146.25,146.19,15.789]
[1723996443989,45.0,146.26,146.19,15.789]
[1723996444195,45.0,146.26,146.19,24.619]
[1723996452794,45.0,146.26,146.19,15.789]
[1723996453388,45.0,146.26,146.19,24.619]
[1723996454696,45.0,146.26,146.19,15.789]
[1723996455781,8.83,146.25,146.19,15.789]
[1723996455978,45.0,146.24,146.19,15.789]
[1723996460596,8.83,146.27,146.19,15.789]
[1723996460794,45.0,146.26,146.19,15.789]
[1723996461004,45.0,146.27,146.2,8.83]
[1723996461378,31.225,146.29,146.2,8.83]
[1723996461784,15.6658,146.29,146.2,8.83]
[1723996462404,6.8358,146.29,146.2,8.83]
[1723996462801,45.0,146.28,146.2,8.83]
[1723996464480,45.0,146.29,146.2,8.83]
[1723996465079,8.83,146.28,146.2,8.83]
[1723996465285,46.70956725,146.27,146.19,15.789]
[1723996465600,46.70956725,146.27,146.2,20.0]
[1723996465786,1.7095671,146.26,146.2,20.0]
[1723996465988,45.0,146.27,146.2,20.0]
[1723996466195,45.0,146.27,146.19,15.789]
[1723996466408,8.83,146.26,146.19,15.789]
[1723996466615,45.0,146.25,146.19,15.789]
[1723996470390,15.6665,146.28,146.19,15.789]
[1723996470802,45.0,146.27,146.19,15.789]
[1723996473722,15.6672,146.26,146.19,15.789]
[1723996473909,45.0,146.25,146.19,15.789]
[1723996476099,8.83,146.24,146.19,15.789]
[1723996476304,45.0,146.23,146.19,15.789]
[1723996476910,10.54017093,146.22,146.15,16.1385]
[1723996477151,45.0,146.21,146.15,16.1385]
[1723996477331,8.83,146.2,146.15,16.1385]
[1723996477503,45.0,146.19,146.15,16.1385]
[1723996478305,8.83,146.18,146.13,6.5876]
[1723996478520,45.0,146.17,146.13,6.5876]
[1723996479406,45.0,146.17,146.12,16.1385]
[1723996482123,10.54095341,146.16,146.09,6.5876]
[1723996482319,45.0,146.15,146.09,6.5876]
[1723996483537,45.0,146.15,146.08,16.1385]
[1723996485736,53.83,146.16,146.08,16.1385]
[1723996486237,53.83,146.16,146.08,24.9685]
[1723996487937,1.71088778,146.16,146.08,24.9685]
[1723996488640,38.95895255,146.18,146.08,24.9685]
[1723996489015,1.71074912,146.17,146.08,24.9685]
[1723996490514,46.71074912,146.17,146.08,24.9685]
[1723996492625,15.6705,146.19,146.1,8.83]
[1723996493324,1.71073248,146.18,146.1,8.83]
[1723996494030,46.71073248,146.18,146.1,8.83]
[1723996498823,46.71073471,146.18,146.1,8.83]
[1723996499051,1.71073774,146.17,146.1,8.83]
[1723996499432,1.71073783,146.17,146.1,8.83]
[1723996499742,46.71073803,146.18,146.1,8.83]
[1723996499924,45.0,146.18,146.1,8.83]
[1723996500127,1.71073676,146.17,146.1,8.83]
[1723996500327,1.71074116,146.17,146.1,8.83]
[1723996500742,10.54074116,146.17,146.08,24.9685]
[1723996500947,8.83,146.15,146.09,20.0]
[1723996501448,45.0,146.14,146.09,20.0]
[1723996503132,45.0,146.14,146.08,16.1385]
[1723996503638,46.71107951,146.14,146.08,16.1385]
[1723996503837,45.0,146.14,146.08,16.1385]
[1723996505327,13.97977015,146.18,146.08,24.9685]
[1723996505642,13.97977015,146.18,146.1,8.83]
[1723996506827,45.0,146.17,146.1,8.83]
[1723996510143,45.0,146.18,146.11,6.1626]
[1723996511732,8.83,146.17,146.11,6.1626]
[1723996511933,46.7108374,146.16,146.11,6.1626]
[1723996512248,45.0,146.16,146.11,6.1626]
[1723996513461,45.0,146.16,146.08,31.1311]
[1723996513755,45.0,146.16,146.09,20.0]
[1723996521943,6.84,146.2,146.1,8.83]
[1723996522140,15.67,146.2,146.11,15.8735]
[1723996522462,17.38072349,146.2,146.11,15.8735]
[1723996522665,6.8404,146.19,146.11,15.8735]
[1723996522834,10.54083141,146.18,146.11,15.8735]
[1723996523041,8.83,146.18,146.11,15.8735]
[1723996523234,45.0,146.17,146.11,15.8735]
[1723996523467,1.7108343,146.16,146.11,15.8735]
[1723996523677,10.5408343,146.16,146.11,15.8735]
[1723996523845,45.0,146.15,146.11,15.8735]
[1723996524770,45.0,146.15,146.08,6.1626]
[1723996525149,51.8423,146.15,146.08,6.1626]
[1723996527148,8.83,146.14,146.08,6.1626]
[1723996527455,45.0,146.13,146.08,6.1626]
[1723996527769,46.71129068,146.13,146.08,6.1626]
[1723996528144,45.0,146.13,146.08,6.1626]
[1723996528860,1.71129184,146.12,146.08,6.1626]
[1723996531068,45.0,146.13,146.08,6.1626]
[1723996531246,10.54131477,146.12,146.07,15.8735]
[1723996531572,45.0,146.11,146.07,15.8735]
[1723996531761,45.0,146.11,146.04,6.2931]
[1723996532266,17.38640617,146.1,146.03,15.8735]
[1723996532443,45.0,146.09,146.03,15.8735]
[1723996533266,8.83,146.08,146.03,15.8735]
[1723996533470,45.0,146.07,146.03,15.8735]
[1723996534255,8.83,146.04,146.01,1.58217782]
[1723996534471,10.54241062,146.04,146.01,1.58217782]
[1723996534774,45.0,146.03,146.01,1.58217782]
[1723996537150,8.83,146.06,146.01,1.58217782]
[1723996537356,45.0,146.05,146.01,1.58217782]
[1723996538067,1.71211913,146.04,146.01,1.58217782]
[1723996538252,45.0,146.05,146.01,1.58217782]
[1723996539854,1.71216432,146.04,146.01,1.58217782]
[1723996542349,1.71219424,146.04,146.01,1.58217782]
[1723996544388,45.0,146.05,146.01,1.58217782]
[1723996546555,1.71242695,146.04,146.01,1.58217782]
[1723996546772,45.0,146.05,146.01,1.58217782]
[1723996549396,27.4054,146.09,146.01,1.58217782]
[1723996549557,8.83,146.09,146.02,15.3075]
[1723996549860,7.13555292,146.08,146.02,15.3075]
[1723996550068,8.83,146.09,146.02,15.3075]
[1723996550677,10.5418078,146.09,146.02,15.3075]
[1723996550882,45.0,146.08,146.02,15.3075]
[1723996552287,1.71195741,146.07,146.02,15.3075]
[1723996552657,45.0,146.08,146.02,15.3075]
[1723996553184,10.54203853,146.07,146.02,15.3075]
[1723996553368,45.0,146.06,146.02,15.3075]
[1723996553571,1.71209345,146.05,146.02,15.3075]
[1723996553763,45.0,146.06,146.02,15.3075]
[1723996553964,1.71211484,146.05,146.02,15.3075]
[1723996554257,45.0,146.06,146.02,15.3075]
[1723996554680,46.71211203,146.06,146.02,15.3075]
[1723996554884,45.0,146.06,146.02,15.3075]
[1723996558575,45.0,146.07,146.02,15.3075]
[1723996560497,8.83,146.06,146.02,15.3075]
[1723996560679,45.0,146.05,146.02,15.3075]
[1723996564068,45.0,146.06,146.02,15.3075]
[1723996569990,45.0,146.06,146.01,1.58217782]
[1723996570195,8.83,146.03,146.01,1.58217782]
[1723996570398,45.0,146.02,146.01,1.58217782]
[1723996574382,27.407,146.05,146.01,1.58217782]
[1723996574383,15.677,146.05,146.01,1.58217782]
[1723996574724,8.83,146.09,146.01,1.58217782]
[1723996574998,6.8456,146.08,146.01,1.58217782]
[1723996575789,8.83,146.07,146.01,1.58217782]
[1723996575990,45.0,146.06,146.01,1.58217782]
[1723996580911,8.83,146.05,146.01,1.58217782]
[1723996581090,45.0,146.04,146.01,1.58217782]
[1723996581292,10.54241036,146.03,146.01,1.58217782]
[1723996582204,45.0,146.02,146.01,1.58217782]
[1723996583686,51.8483,146.02,146.01,1.58217782]
[1723996583889,72.4083,146.02,146.01,1.58217782]
[1723996584095,107.7283,146.02,146.01,1.58217782]
[1723996584300,137.7283,146.02,146.01,1.58217782]
[1723996584541,104.12126176,146.02,146.01,1.58217782]
[1723996585219,104.12126176,146.02,145.9,0.8728613]
[1723996585220,20.56,146.0,145.9,0.8728613]
[1723996585388,20.56,145.98,145.9,0.8728613]
[1723996585593,75.0,145.97,145.9,0.8728613]
[1723996585790,75.0,145.97,145.91,8.83]
[1723996586397,45.0,145.97,145.91,8.83]
[1723996586887,30.0,145.96,145.91,8.83]
[1723996587290,45.0,145.97,145.91,8.83]
[1723996587808,8.83,146.0,145.91,8.83]
[1723996588013,45.0,145.99,145.91,8.83]
[1723996588213,45.0,146.0,145.91,8.83]
[1723996593113,45.0,146.0,145.93,8.83]
[1723996593418,46.71270269,146.01,145.95,8.83]
[1723996593597,1.71272253,146.0,145.93,8.83]
[1723996595091,45.0,146.01,145.95,8.83]
[1723996595321,1.71256112,146.0,145.95,8.83]
[1723996595498,1.71256088,146.01,145.95,8.83]
[1723996595913,45.0,146.02,145.95,8.83]
[1723996596121,46.71256168,146.02,145.95,8.83]
[1723996596421,1.71256168,146.01,145.95,8.83]
[1723996596711,36.2368,146.06,145.97,8.83]
[1723996596922,6.847,146.05,145.97,8.83]
[1723996597415,1.71242004,146.04,145.97,8.83]
[1723996598004,46.71242004,146.04,145.96,16.1706]
[1723996598315,62.39012004,146.04,145.96,16.1706]
[1723996600214,8.83,146.02,145.96,16.1706]
[1723996600402,8.83,146.0,145.96,16.1706]
[1723996600803,15.6784,146.02,145.96,16.1706]
[1723996601113,46.71274833,146.01,145.96,16.1706]
[1723996603425,55.54274833,146.01,145.96,16.1706]
[1723996608303,1.71275345,146.0,145.96,16.1706]
[1723996609429,1.71282548,145.99,145.96,16.1706]
[1723996609606,1.71285936,145.98,145.96,16.1706]
[1723996610705,55.54285914,145.99,145.92,22.4302]
[1723996610922,1.71311763,145.98,145.92,22.4302]
[1723996611528,8.83,145.97,145.92,22.4302]
[1723996611731,46.71329471,145.96,145.92,16.1706]
[1723996611916,1.71329353,145.95,145.92,16.1706]
[1723996614034,45.0,145.96,145.92,16.1706]
[1723996614410,15.6799,145.99,145.92,16.1706]
[1723996614807,45.0,145.98,145.92,16.1706]
[1723996616441,45.0,145.98,145.92,25.0006]
[1723996616747,45.0,145.99,145.92,25.0006]
[1723996616915,45.0,146.0,145.92,25.0006]
[1723996617933,45.0,146.0,145.94,8.83]
[1723996618238,45.0,146.01,145.94,8.83]
[1723996622124,21.0926,146.08,145.98,8.83]
[1723996622335,15.676,146.07,145.98,15.1153]
[1723996623118,36.236,146.07,145.98,15.1153]
[1723996623451,6.8466,146.06,145.98,15.1153]
[1723996624112,45.0,146.05,145.98,15.1153]
[1723996625221,36.236,146.07,145.99,15.9918]
[1723996625442,15.676,146.07,145.99,15.9918]
[1723996626440,8.83,146.07,145.99,15.9918]
[1723996626736,36.2354,146.09,146.0,8.83]
[1723996626926,8.83,146.07,145.99,15.9918]
[1723996627128,1.71202452,146.06,145.99,15.9918]
[1723996627325,8.83,146.07,145.99,15.9918]
[1723996627530,10.54202388,146.07,145.99,15.9918]
[1723996627719,45.0,146.06,145.99,15.9918]
[1723996627916,45.0,146.06,145.99,24.8218]
[1723996631017,45.0,146.06,145.99,15.9918]
[1723996631435,8.83,146.03,145.99,15.9918]
[1723996631741,45.0,146.02,145.99,15.9918]
[1723996633027,45.0,146.02,145.94,8.83]
[1723996633028,8.83,146.01,145.95,15.9918]
[1723996633217,45.0,146.0,145.95,15.9918]
[1723996633552,8.83,146.01,145.95,15.9918]
[1723996633726,45.0,146.0,145.95,15.9918]
[1723996639664,1.71272742,145.99,145.95,15.9918]
[1723996639855,45.0,146.0,145.95,15.9918]
[1723996639856,1.71284212,145.98,145.95,15.9918]
[1723996640436,46.71284212,145.98,145.95,15.9918]
[1723996641554,46.71284212,145.98,145.91,15.889]
[1723996641555,10.54293453,145.97,145.91,15.889]
[1723996641765,45.0,145.96,145.91,15.889]
[1723996643155,8.83,145.99,145.91,15.889]
[1723996643354,46.7130813,145.98,145.91,15.889]
[1723996643662,45.0,145.98,145.91,15.889]
[1723996644064,46.71311271,145.98,145.91,15.889]
[1723996644270,1.71311486,145.97,145.91,15.889]
[1723996645065,8.83,145.97,145.91,15.889]
[1723996645346,45.0,145.96,145.91,15.889]
[1723996646870,45.0,145.96,145.91,24.719]
[1723996647047,8.83,145.99,145.91,24.719]
[1723996647358,45.0,145.98,145.91,24.719]
[1723996650679,1.71313396,145.97,145.91,15.889]
[1723996651347,8.83,145.97,145.91,15.889]
[1723996651554,45.0,145.96,145.91,15.889]
[1723996660060,45.0,145.96,145.91,24.719]
[1723996660583,6.8484,146.02,145.93,8.83]
[1723996660755,15.6784,146.02,145.93,8.83]
[1723996662456,1.71284349,146.01,145.93,8.83]
[1723996662789,8.83,146.0,145.91,24.719]
[1723996663085,8.83,146.0,145.92,20.0]
[1723996663086,1.71296903,145.99,145.92,20.0]
[1723996663267,45.0,145.99,145.92,20.0]
[1723996667877,46.71298489,145.99,145.92,28.83]
[1723996668588,45.0,145.99,145.92,28.83]
[1723996669277,1.71298708,145.98,145.92,28.83]
[1723996669484,45.0,145.99,145.92,28.83]
[1723996673266,20.56,145.98,145.92,28.83]
[1723996673460,45.0,145.97,145.92,28.83]
[1723996673685,45.0,145.99,145.92,28.83]
[1723996674378,8.83,146.02,145.94,8.83]
[1723996674773,1.71276069,146.01,145.94,8.83]
[1723996675692,1.71276069,146.01,145.92,28.83]
[1723996675904,46.71276069,146.01,145.92,28.83]
[1723996682181,45.0,146.01,145.92,28.83]
[1723996682388,7.15972748,146.04,145.96,8.83]
[1723996682711,6.8465,146.06,145.98,8.83]
[1723996684090,6.8465,146.06,145.96,15.4554]
[1723996684518,10.54240205,146.05,145.96,15.4554]
[1723996684685,1.71246759,146.04,145.96,15.4554]
[1723996685097,8.83,146.05,145.96,15.4554]
[1723996685309,45.0,146.04,145.96,15.4554]
[1723996686711,46.7124532,146.04,145.96,6.6254]
[1723996686884,46.71245466,146.04,145.96,15.4554]
[1723996687486,45.0,146.04,145.96,15.4554]
[1723996688296,67.2724547,146.04,145.96,6.6254]
[1723996688502,29.39,146.03,145.96,6.6254]
[1723996688709,46.71278045,146.02,145.96,6.6254]
[1723996688912,1.71276812,146.01,145.96,6.6254]
[1723996692994,45.0,146.02,145.96,6.6254]
[1723996700127,20.56,146.07,145.97,8.83]
[1723996700422,65.56,146.06,145.97,8.83]
[1723996701433,17.1116,146.1,145.99,8.83]
[1723996701434,20.56,146.1,145.99,8.83]
[1723996701728,37.94715356,146.09,145.99,8.83]
[1723996702825,45.0,146.08,145.99,8.83]
[1723996703224,10.54205575,146.07,145.99,8.83]
[1723996703428,45.0,146.06,145.99,8.83]
[1723996703735,1.71225779,146.05,145.98,15.3701]
[1723996704030,10.54225779,146.05,145.98,15.3701]
[1723996704210,46.71237996,146.04,145.98,15.3701]
[1723996706541,45.0,146.04,145.98,15.3701]
[1723996706737,45.0,146.04,145.98,24.2001]
[1723996710210,14.00007111,146.1,146.0,8.83]
[1723996710413,13.99997111,146.1,146.02,8.83]
[1723996711110,7.15537111,146.1,146.03,15.3701]
[1723996711311,1.71174809,146.1,146.03,15.3701]
[1723996711838,36.2341,146.11,146.03,15.3701]
[1723996712023,37.94590368,146.11,146.03,15.3701]
[1723996712221,36.2341,146.11,146.03,15.3701]
[1723996712431,1.71180486,146.1,146.03,15.3701]
[1723996712615,46.71180486,146.1,146.03,15.3701]
[1723996712937,8.83,146.09,146.03,15.3701]
[1723996713133,45.0,146.08,146.03,15.3701]
[1723996714348,45.0,146.09,146.03,15.3701]
[1723996716856,1.71174788,146.08,146.03,15.3701]
[1723996717243,45.0,146.09,146.03,15.3701]
[1723996718858,1.71174734,146.08,146.03,15.3701]
[1723996720349,45.0,146.09,146.03,15.3701]
[1723996720839,46.71174607,146.09,146.03,15.3701]
[1723996721553,45.0,146.09,146.03,15.3701]
[1723996724735,45.0,146.08,146.03,15.3701]